Workbook

Sheet Information (hidden)
A1: Stony Creek WD - 2023 M&I Water Rates Sch O-7.Z25.xlsm
A2: 01/09/2023
A6: 1/26/2022 | B6: slf | C6: removed construction rates since contractor converted to WIIN Act
A8: 10/26/2022 | B8: JH | C8: Updated file names, title, headings, and date
C9: Updated O&M cost on Output tab
C10: Updated Linked input tab
C11: Awaiting for IRR 2023 FC to be completed
A12: 10/27/2022 | C12: 2023 FC (FA-1I) interest rate is the same as FY 2019, no update needed.
A13: 01/09/2023 | B13: KJ | C13: Review

Sheet OUTPUT
A2: =+Information!A1 -> Stony Creek WD - 2023 M&I Water Rates Sch O-7.Z25.xlsm
A3: =+Information!A2 -> 01/09/2023
A4: CENTRAL VALLEY PROJECT
A5: STONY CREEK WATER DISTRICT
A6: BLACK BUTTE D & R
A7: CONTRACT NO. 2-07-20-W0261-P
A8: 2023 M&I WATER RATES
A9: FOR TIERED PRICING PURPOSES
A10: Category | B10: Component | C10: Cost of Service Rate per Acre-Foot <Sch S-2, A-8> | D10: Full Cost Rate per Acre-Foot <Sch S-2, A-8>
A11: Construction Costs per Acre-Foot | B11: Storage | C11: 0 | D11: TBD
A12: Construction Costs per Acre-Foot | B12: Other Cost | C12: 0 | D12: TBD
A13: Total | B13: Total Capital | C13: =SUM(C11:C12) -> 0 | D13: =SUM(D11:D12) -> 0
A14: O&M Cost Per Acre-Foot | B14: Water Marketing | C14: =[1]OUTPUT!$E$161 -> 15.52 | D14: TBD
A15: O&M Cost Per Acre-Foot | B15: Storage | C15: =[1]OUTPUT!$G$169 -> 17.23 | D15: TBD
A16: Total | B16: Total O&M | C16: =SUM(C14:C15) -> 32.75 | D16: =SUM(D14:D15) -> 0
A17: Grand Total | B17: - | C17: =+C13+C16 -> 32.75 | D17: =+D13+D16 -> 0

Sheet Linked Input (hidden)
A1: =+OUTPUT!A2 -> Stony Creek WD - 2023 M&I Water Rates Sch O-7.Z25.xlsm
A2: =+Information!A2 -> 01/09/2023
B5: Special Rates 2023 Sch S-2.Z25.XLSM
I7: Net Unpaid | K7: Unpaid Construction | O7: FY 2023 | Q7: Unpaid Construction Rate
I8: Construction | K8: Annualized Cost | M8: Annual Interest @ | O8: Projected | Q8: Construction
I9: at 9/30/2021 | K9: 8 Remaining Years | M9: =+K22 -> 0.08012 | O9: Deliveries | Q9: only | R9: Interest | S9: Total
C11: Storage (All Other Contractors) | I11: =[2]OUTPUT!$M$19 -> 2158285.3 | K11: =+I11/8 -> 269785.6625 | M11: =+I11*M$9 -> 172921.8182 | O11: =[2]OUTPUT!$S$19 -> 245181.5714 | Q11: =ROUND(+K11/O11,2) -> 1.1 | R11: =ROUND(+M11/O11,2) -> 0.71 | S11: =+Q11+R11 -> 1.81
C13: Other Costs | I13: =[2]OUTPUT!$M$89 -> 1629023.464 | K13: =+I13/8 -> 203627.933 | M13: =+I13*M$9 -> 130517.3599 | O13: =[2]OUTPUT!$S$89 -> 331768.7143 | Q13: =ROUND(+K13/O13,2) -> 0.61 | R13: =ROUND(+M13/O13,2) -> 0.39 | S13: =+Q13+R13 -> 1
B20: I:\WTRates\Rates\2023\Full Cost\FC\IRR 2023 FC (FA&B-1I) GS Composite Interest Rate All Components
C22: FULL COST COMPOSITE INTEREST RATE FOR CAPITAL | K22: 0.08012
